bitfinex/quotes_ETHUSD_20250107
["timestamp","ask_amount","ask_price","bid_price","bid_amount"]
[1736281753233,2.96042,3377.9,3377.4,0.0075]
[1736281753698,2.96056,3377.8,3377.4,0.0075]
[1736281753829,2.96033,3378.0,3377.1,0.8165]
[1736281754026,2.96023,3378.2,3377.2,0.0075]
[1736281754254,0.59160723,3378.3,3377.2,2.8686894]
[1736281754849,0.55,3378.3,3377.1,0.8258]
[1736281755244,3.43516089,3378.8,3377.6,0.0075]
[1736281755245,0.8343,3378.8,3377.6,0.0075]
[1736281756222,3.0,3378.6,3377.6,0.0075]
[1736281756421,2.95995,3378.5,3377.6,0.0075]
[1736281757162,2.96002,3378.4,3377.6,0.0075]
[1736281757877,2.96009,3378.3,3377.6,0.0075]
[1736281758385,2.95986,3378.6,3377.6,0.38913163]
[1736281758549,2.95986,3378.6,3377.8,0.0075]
[1736281759276,3.7557,3379.1,3377.8,0.0075]
[1736281759277,0.7557,3379.1,3377.8,0.0075]
[1736281759451,2.95945,3379.0,3377.6,0.0075]
[1736281759655,3.59623101,3379.1,3377.6,0.0075]
[1736281759856,2.95994,3378.5,3377.6,0.0075]
[1736281760179,0.70313919,3379.0,3377.6,0.0075]
[1736281760180,2.96,3378.4,3377.6,0.0075]
[1736281760882,1.3233,3378.8,3377.6,0.0075]
[1736281761089,2.96018,3378.2,3377.6,0.0075]
[1736281761375,2.95997,3378.5,3377.6,0.0075]
[1736281761681,2.95968,3378.8,3377.9,0.0075]
[1736281761881,2.95968,3378.8,3378.1,0.0075]
[1736281762090,0.70313919,3379.0,3378.1,0.0075]
[1736281762253,2.54626771,3380.0,3378.1,0.0075]
[1736281762254,1.78647526,3379.7,3378.7,0.7963]
[1736281762456,1.20005067,3379.7,3378.8,0.0075]
[1736281762637,1.20005067,3379.7,3379.0,0.0075]
[1736281762838,1.80007601,3379.9,3379.2,0.0075]
[1736281762839,3.0,3379.9,3379.2,0.0075]
[1736281763071,1.20005067,3380.0,3379.2,0.0075]
[1736281763588,4.15870067,3380.0,3379.2,0.0075]
[1736281763739,1.20005067,3380.0,3379.4,0.0075]
[1736281764538,2.40010135,3380.3,3379.4,0.0075]
[1736281764539,2.95835,3380.3,3379.4,0.0075]
[1736281764763,2.95841,3380.2,3379.4,0.0075]
[1736281764933,0.295841,3380.1,3379.4,0.0075]
[1736281765378,0.295841,3380.1,3379.4,2.96658]
[1736281765553,0.295841,3380.1,3379.6,0.0075]
[1736281766053,2.95805,3380.6,3379.8,0.0075]
[1736281766259,2.95762,3381.1,3379.8,0.0075]
[1736281766570,2.95798,3380.7,3379.8,0.0075]
[1736281766767,0.59815664,3381.0,3379.8,0.0075]
[1736281767077,3.55593664,3381.0,3379.8,0.0075]
[1736281767234,2.95804,3380.7,3379.8,0.0075]
[1736281767639,1.08045975,3380.9,3380.1,0.0075]
[1736281767866,2.95778,3381.0,3380.1,0.0075]
[1736281768184,2.95776,3381.0,3380.1,0.0075]
[1736281768385,2.95782,3380.9,3380.1,0.0075]
[1736281768838,2.95764,3381.1,3380.2,0.7784]
[1736281769043,3.0,3381.2,3380.3,0.0075]
[1736281769280,0.595745,3381.1,3380.3,0.0075]
[1736281769480,2.95754,3381.2,3380.3,0.0075]
[1736281770174,2.95762,3381.1,3380.3,0.0075]
[1736281770589,2.9577,3381.0,3380.3,0.0075]
[1736281770883,3.0,3381.3,3380.3,0.0075]
[1736281771045,2.95778,3381.0,3380.3,0.0075]
[1736281771245,0.295778,3380.9,3380.3,0.0075]
[1736281772650,3.253588,3380.9,3380.3,0.0075]
[1736281775211,2.9573,3381.5,3380.5,0.0075]
[1736281775489,2.9572,3381.6,3380.9,0.0075]
[1736281777101,0.55,3381.8,3380.9,0.0075]
[1736281777286,2.95727,3381.5,3380.9,0.0075]
[1736281777888,3.35563609,3381.7,3380.9,0.0075]
[1736281778088,2.95719,3381.6,3380.9,0.0075]
[1736281778703,0.39851609,3381.7,3380.9,0.0075]
[1736281779043,2.95735,3381.4,3380.0,0.7581]
[1736281779217,2.95782,3380.9,3380.0,3.7581]
[1736281779385,2.95782,3380.9,3380.1,0.0075]
[1736281779739,0.72251109,3381.3,3380.5,0.0075]
[1736281780060,2.9576,3381.2,3380.5,0.0075]
[1736281780382,0.72251109,3381.3,3380.6,0.7908]
[1736281780586,2.9572,3381.6,3380.9,0.0075]
[1736281780897,0.39851609,3381.7,3380.9,0.0075]
[1736281781097,2.95725,3381.6,3380.9,0.0075]
[1736281781533,3.43516089,3382.4,3380.9,0.0075]
[1736281781683,2.95711,3381.7,3381.1,0.0075]
[1736281781883,2.95665,3382.2,3381.1,0.0075]
[1736281782189,2.95704,3381.8,3381.1,0.0075]
[1736281783215,2.95709,3381.7,3381.1,0.0075]
[1736281784327,0.595704,3381.8,3381.1,0.0075]
[1736281784498,3.552724,3381.8,3381.1,0.0075]
[1736281785413,2.95655,3382.4,3381.5,0.0075]
[1736281785614,2.95636,3382.6,3381.5,0.0075]
[1736281785615,2.95658,3382.3,3381.5,0.0075]
[1736281785817,3.43516089,3382.8,3381.7,0.0075]
[1736281785818,6.39130089,3382.8,3381.7,0.0075]
[1736281786003,2.95652,3382.4,3381.7,0.0075]
[1736281786341,3.547793,3382.4,3381.7,0.0075]
[1736281787141,2.95666,3382.2,3381.7,0.0075]
[1736281788076,4.02643389,3382.4,3381.7,0.0075]
[1736281788358,3.7933,3382.3,3381.2,0.7708]
[1736281788659,2.95703,3381.8,3381.2,0.7708]
[1736281789006,2.95709,3381.7,3381.3,0.0075]
[1736281789265,2.957,3381.8,3381.3,0.0075]
[1736281789418,2.95691,3381.9,3381.3,0.0075]
[1736281789806,2.95702,3381.8,3381.3,0.0075]
[1736281790036,2.95702,3381.8,3381.2,0.7708]
[1736281790037,0.295702,3381.8,3381.2,0.7708]
[1736281790255,2.95665,3382.2,3381.3,0.0075]
[1736281790446,2.95703,3381.8,3381.3,0.0075]
[1736281792155,0.02610564,3381.7,3381.3,0.0075]
[1736281792363,2.98320564,3381.7,3381.3,0.0075]
[1736281792652,0.02650592,3381.6,3381.3,0.0075]
[1736281793326,2.98370592,3381.6,3381.3,0.0075]
[1736281793524,2.95728,3381.5,3381.3,0.0075]
[1736281793728,2.98383877,3381.5,3381.3,0.0075]
[1736281793928,2.95735,3381.4,3381.3,0.0075]
[1736281795359,2.95691,3381.9,3381.3,0.0075]
[1736281795558,0.295691,3381.8,3381.3,0.0075]
[1736281796251,2.95709,3381.7,3381.3,0.0075]
[1736281796467,0.295691,3381.8,3381.3,0.0075]
[1736281796631,2.95735,3381.5,3381.3,0.0075]
[1736281797348,2.95735,3381.4,3381.3,0.0075]
[1736281798463,0.55,3382.2,3381.3,0.0075]
[1736281798658,2.9573,3381.5,3381.3,0.0075]
[1736281798961,2.95735,3381.4,3381.3,0.0075]
[1736281800317,2.95683,3382.0,3381.3,0.0075]
[1736281800817,2.95631,3382.6,3381.5,0.0075]
[1736281801068,2.95661,3382.3,3381.7,0.0075]
[1736281801220,2.86802851,3382.7,3381.7,0.0075]
[1736281801420,2.95671,3382.2,3381.7,0.0075]
[1736281801657,3.0,3382.3,3381.7,0.0075]
[1736281801860,2.95695,3381.9,3381.7,0.0075]
[1736281802034,2.9569,3382.0,3381.7,0.0075]
[1736281802366,3.78728,3383.1,3381.9,0.7852]
[1736281802535,2.95588,3383.1,3382.0,0.03706653]
[1736281802754,2.95632,3382.6,3382.0,0.0075]
[1736281803051,2.86802851,3382.8,3382.0,0.0075]
[1736281803252,2.95665,3382.2,3382.0,0.0075]
[1736281804170,3.0,3382.7,3382.0,0.0075]
[1736281804389,0.58680285,3382.6,3382.0,0.0075]
[1736281804588,4.06807918,3383.7,3382.3,0.8047]
[1736281804741,1.20005067,3383.7,3382.6,0.0075]
[1736281804944,2.95556,3383.5,3382.8,0.0075]
[1736281805786,2.95586,3383.2,3382.8,0.0075]
[1736281806099,2.95604,3382.9,3382.8,0.0075]
[1736281806296,2.95588,3383.1,3382.8,0.0075]
[1736281806467,2.95597,3383.0,3382.8,0.0075]
[1736281806843,2.95604,3382.9,3382.8,0.0075]
[1736281807156,2.95655,3382.4,3381.9,0.7943]
[1736281807358,2.95595,3383.0,3382.0,0.0075]
[1736281807566,2.86802851,3382.8,3381.9,0.7943]
[1736281807779,2.95683,3382.0,3381.9,0.7943]
[1736281808347,2.95683,3382.0,3381.3,0.7943]
[1736281808626,1.40163333,3382.6,3381.3,0.7943]
[1736281808627,2.95729,3381.5,3381.3,0.7943]
[1736281809591,2.95648,3382.4,3380.6,0.7943]
[1736281809592,2.86802851,3381.6,3380.6,0.7943]
[1736281809793,2.95752,3381.3,3380.6,0.7943]
[1736281810089,2.95754,3381.2,3380.6,0.7943]
[1736281810313,2.95765,3381.1,3380.6,0.7943]
[1736281810511,2.95796,3380.7,3380.3,0.7943]
[1736281810710,2.95753,3381.2,3380.3,0.7943]
[1736281810910,2.95753,3381.2,3380.3,1.169575]
[1736281811315,0.28680285,3381.5,3380.4,0.0370787]
[1736281811813,2.95745,3381.3,3380.4,0.0370787]
[1736281811986,0.28680285,3381.5,3380.4,0.2685]
[1736281812311,2.95762,3381.1,3380.4,0.2685]
[1736281812876,4.03428572,3381.5,3380.3,0.7943]
[1736281813213,2.95797,3380.7,3380.3,0.7943]
[1736281813586,3.42962205,3381.1,3380.3,0.7943]
[1736281813792,2.95851,3380.1,3379.8,0.8302]
[1736281814088,3.42962205,3380.7,3379.8,0.8302]
[1736281814402,2.95718,3381.6,3380.2,0.8377]
[1736281814583,2.95718,3381.6,3380.4,0.0075]
[1736281814584,2.95755,3381.2,3380.4,0.0075]
[1736281814784,3.55,3381.6,3380.4,0.0075]
[1736281814983,3.0,3381.6,3380.4,0.0075]
[1736281815215,2.95749,3381.3,3380.4,0.0075]
[1736281815399,1.20005067,3381.5,3380.6,0.8377]
[1736281815603,1.20005067,3381.5,3380.6,0.86727741]
[1736281815897,4.15734067,3381.5,3380.8,0.0075]
[1736281816287,1.20005067,3381.5,3380.8,0.0075]
[1736281816490,2.95751,3381.3,3380.8,0.0075]
[1736281816685,2.95729,3381.5,3380.8,0.0075]
[1736281816878,3.19713013,3381.7,3380.7,0.0075]
[1736281817281,2.95718,3381.6,3380.7,0.0075]
[1736281817509,2.98403586,3381.5,3380.7,0.0075]
[1736281817786,0.34918046,3381.5,3380.7,0.0075]
[1736281817980,0.02677586,3381.5,3380.7,0.0075]
[1736281818303,3.19712013,3381.7,3380.7,0.0075]
[1736281818502,0.24001013,3381.7,3380.9,0.0075]
[1736281818678,0.02620945,3381.6,3381.4,0.7804]
[1736281818879,4.15662067,3382.3,3382.0,0.0075]
[1736281818880,1.20005067,3382.3,3382.0,0.0075]
[1736281819080,1.20005067,3382.3,3382.2,2.95665]
[1736281819319,1.20005067,3382.3,3382.2,2.9937146]
[1736281819496,1.20005067,3382.3,3382.2,3.73705]
[1736281819695,1.20005067,3382.3,3382.2,6.5982394]
[1736281820026,3.0,3383.3,3382.3,2.96404]
[1736281820381,2.95561,3383.4,3382.3,2.96404]
[1736281820720,3.54267866,3383.6,3382.3,0.0075]
[1736281820922,2.95558,3383.5,3382.4,0.8184]
[1736281821082,2.95535,3383.7,3382.8,0.0075]
[1736281821454,2.95544,3383.6,3382.8,0.0075]
[1736281821781,0.38151267,3383.7,3382.8,0.03705855]
[1736281821981,0.38151267,3383.7,3382.8,2.99316855]
[1736281822424,2.95517,3383.9,3383.0,0.0075]
[1736281822833,1.20005067,3384.1,3383.0,2.99297748]
[1736281823036,1.98535067,3384.7,3383.4,0.0075]
[1736281823185,0.02699445,3384.0,3383.6,0.0075]
[1736281823538,0.02859484,3383.9,3383.6,0.0075]
[1736281823826,0.02859484,3383.9,3383.8,0.8407]
[1736281824127,1.20005067,3384.7,3383.8,3.82549814]
[1736281824427,3.60412572,3385.2,3384.4,0.0075]
[1736281824428,2.95414,3385.1,3384.4,0.0075]
[1736281825020,0.02917572,3385.0,3384.4,0.0075]
[1736281825433,1.20005067,3385.2,3384.4,0.0075]
[1736281825595,0.0285612,3384.9,3384.4,0.0075]
[1736281825796,0.59540767,3385.1,3384.4,0.0075]
[1736281826001,0.0285612,3384.8,3384.4,0.0075]
[1736281826199,0.59540767,3385.1,3384.4,0.0075]
[1736281826401,0.0285612,3384.7,3384.4,0.0075]
[1736281826749,0.0285612,3384.6,3384.4,0.0075]
[1736281827094,2.95418,3385.1,3384.3,0.8031]
[1736281827354,3.02904399,3385.0,3383.9,0.8031]
[1736281827649,2.955,3384.1,3384.0,0.0075]
[1736281827941,2.98391577,3384.1,3383.9,0.8031]
[1736281828143,0.02891577,3384.1,3383.9,0.8031]
[1736281828346,0.02891577,3384.1,3384.0,0.0075]
[1736281828499,2.95483,3384.3,3384.0,0.0075]
[1736281828694,0.02868191,3384.2,3384.0,0.0075]
[1736281829095,3.42962205,3385.5,3384.0,0.0075]
[1736281829452,2.95456,3384.6,3384.0,0.0075]
[1736281829958,3.0,3385.4,3384.0,0.0075]
[1736281830248,2.95478,3384.4,3384.0,0.0075]
[1736281830456,0.02865928,3385.2,3384.2,0.0075]
[1736281830616,0.0287649,3384.3,3384.2,0.8243438]
[1736281830955,2.95368,3385.6,3384.6,0.0075]
[1736281831098,2.95368,3385.6,3384.7,0.7873]
[1736281831301,2.95368,3385.6,3384.8,0.0075]
[1736281831731,0.60469668,3385.9,3384.8,0.0075]
[1736281831936,2.95428,3385.0,3384.8,0.0075]
[1736281832447,3.0,3385.7,3384.8,0.0075]
[1736281832647,0.0295871,3384.9,3384.8,0.0075]
[1736281833160,2.95408,3385.2,3384.8,0.0075]
[1736281833450,0.0295871,3384.9,3384.8,0.0075]
[1736281833763,0.02894854,3384.9,3384.8,0.0075]
[1736281833904,0.02894854,3384.9,3384.8,3.82252416]
[1736281834098,2.95334,3386.0,3384.8,4.54773878]
[1736281834418,0.7632,3386.5,3385.4,0.8386]
[1736281834419,0.02796302,3385.9,3385.4,0.8386]
[1736281834594,0.02796302,3385.9,3385.6,0.0075]
[1736281834800,2.95269,3386.8,3385.6,0.0075]
[1736281835000,2.95296,3386.5,3385.6,0.0075]
[1736281835196,2.95296,3386.5,3385.8,0.0075]
[1736281835737,0.02796302,3386.4,3385.8,0.0075]
[1736281836553,0.02796302,3386.4,3385.7,0.0075]
[1736281836755,0.02796302,3386.4,3385.9,0.0075]
[1736281836900,0.02796302,3386.4,3386.1,2.96071]
[1736281837108,2.95215,3387.4,3386.3,0.8312]
[1736281837304,0.02796302,3387.3,3386.7,0.0075]
[1736281838064,0.02796302,3387.3,3386.9,0.0075]
[1736281838242,2.95231,3387.2,3386.9,0.0075]
[1736281838554,2.98027302,3387.2,3386.9,0.0075]
[1736281840462,0.02796302,3387.2,3386.9,0.0075]
[1736281840753,2.95178,3387.8,3387.1,0.0075]
[1736281840961,3.246958,3387.8,3387.1,0.0075]
[1736281841121,0.03012318,3387.7,3387.1,0.0075]
[1736281841327,3.52888236,3388.2,3387.2,0.768]
[1736281841328,2.95206,3387.5,3387.2,0.768]
[1736281841637,3.57740236,3388.2,3387.3,0.0075]
[1736281841638,0.02952048,3387.4,3387.3,0.0075]
[1736281842040,2.95188,3387.7,3387.3,0.0075]
[1736281842559,2.95211,3387.4,3387.3,0.0075]
[1736281842862,2.95211,3387.4,3386.2,3.0]
[1736281842863,0.29807234,3387.4,3386.1,0.8207]
[1736281843074,3.42962205,3387.1,3386.1,0.8207]
[1736281843352,0.8231,3387.0,3386.1,0.8207]
[1736281843569,2.95274,3386.7,3386.1,0.8207]
[1736281843744,0.0286737,3386.9,3386.2,0.02953118]
[1736281844065,2.95264,3386.8,3386.2,0.02953118]
[1736281844362,2.95264,3386.8,3386.3,0.0075]
[1736281844363,2.9813137,3386.8,3386.3,0.0075]
[1736281844658,0.0286737,3386.8,3386.2,0.0075]
[1736281844856,1.42090213,3387.4,3386.2,0.0075]
[1736281845150,0.80893312,3387.3,3386.2,0.0075]
[1736281845358,2.95246,3387.0,3386.2,0.0075]
[1736281845561,2.95246,3387.0,3386.1,0.767]
[1736281845710,2.95244,3387.1,3386.5,0.0075]
[1736281845911,0.0286737,3386.9,3386.5,0.0075]
[1736281846104,0.78025942,3387.3,3386.5,0.0075]
[1736281846306,0.0286737,3386.8,3386.5,0.0075]
[1736281846506,2.95273,3386.7,3386.5,0.0075]
[1736281847051,2.9531,3386.3,3385.9,0.26]
[1736281847353,0.0286737,3386.6,3385.7,0.836]
[1736281847557,2.95338,3386.0,3385.7,0.836]
[1736281847853,2.95321,3386.2,3385.7,0.836]
[1736281848208,2.95281,3386.6,3385.8,0.03703446]
[1736281848611,0.0286737,3386.5,3385.8,0.0075]
[1736281848810,0.0286737,3386.5,3386.1,0.8032]
[1736281849045,2.95249,3387.0,3386.2,0.0075]
[1736281849316,0.0286737,3386.4,3386.2,0.0075]
[1736281849549,3.68385058,3387.2,3386.2,0.0075]
[1736281849757,2.95263,3386.9,3386.2,0.0075]
[1736281849956,0.0286737,3387.1,3386.2,0.02952836]
[1736281850161,2.9515,3388.1,3386.4,0.8032]
[1736281850339,2.9515,3388.1,3386.9,0.8032]
[1736281850663,0.02868879,3388.0,3387.2,0.0075]
[1736281850862,2.95172,3387.9,3387.2,0.03701987]
[1736281851170,0.02868879,3387.9,3387.2,0.0075]
[1736281851311,2.95186,3387.7,3387.2,0.0075]
[1736281851885,0.02868879,3387.6,3387.2,0.0075]
[1736281852436,2.95141,3388.2,3387.2,0.0075]
[1736281852679,0.72615615,3388.1,3387.2,0.0075]
[1736281852876,0.72615615,3388.1,3387.2,0.03701953]
[1736281853084,0.72615615,3388.1,3387.2,0.0075]
[1736281853240,2.9518,3387.8,3387.2,0.0075]
[1736281853452,0.02839757,3387.7,3387.2,0.0075]
[1736281855788,0.69746736,3388.1,3387.2,0.0075]
[1736281856084,2.95204,3387.5,3387.2,0.0075]
[1736281856231,2.95189,3387.7,3387.2,0.0075]
[1736281856663,0.02745234,3387.6,3387.2,0.0075]
[1736281857089,0.02745234,3387.6,3387.2,0.03702107]
[1736281857392,2.95144,3388.2,3387.4,0.0075]
[1736281857537,2.95144,3388.2,3387.6,0.0075]
[1736281857734,0.02745234,3388.1,3387.8,0.0075]
[1736281857940,2.95114,3388.6,3387.8,0.03701423]
[1736281858173,0.02745234,3388.0,3387.8,0.03701423]
[1736281858489,2.95101,3388.7,3388.0,0.0075]
[1736281858701,3.42962205,3388.6,3388.0,0.0075]
[1736281858879,2.9515,3388.1,3387.7,0.7852]
[1736281859075,2.95175,3387.9,3387.7,0.7852]
[1736281859279,0.8187,3388.5,3387.8,0.0075]
[1736281859280,3.76986,3388.5,3387.8,0.0075]
[1736281859482,0.71994821,3388.5,3387.8,0.0075]
[1736281859687,2.95119,3388.5,3387.8,0.0075]
[1736281860088,0.7685,3388.9,3387.9,0.02951495]
[1736281860385,2.95102,3388.7,3388.0,0.0075]
[1736281860893,2.95108,3388.6,3388.0,0.0075]
[1736281861047,4.01079065,3389.0,3387.7,0.7852]
[1736281861416,0.47792907,3388.9,3387.7,0.7852]
[1736281861703,2.95131,3388.4,3387.8,0.0075]
[1736281862001,2.95136,3388.3,3387.8,0.0075]
[1736281862578,0.47792907,3388.9,3387.8,0.0075]
[1736281862994,2.95175,3387.9,3387.4,0.7629]
[1736281863320,3.7634,3387.6,3386.4,0.7629]
[1736281863469,2.9525,3387.0,3386.4,0.7629]
[1736281863802,2.9529,3386.5,3386.4,0.7629]
[1736281864010,2.95298,3386.4,3386.3,0.02028906]
[1736281864153,2.95284,3386.6,3386.3,0.02028906]
[1736281864351,3.42962205,3387.2,3386.0,0.7798]
[1736281864590,2.95325,3386.1,3385.7,0.259]
[1736281864750,2.95342,3385.9,3385.6,0.7965]
[1736281866371,3.8329,3386.7,3385.6,0.7965]
[1736281866643,3.8329,3386.7,3385.2,1.0555]
[1736281866644,2.95359,3385.8,3385.2,1.0555]
[1736281866773,0.55,3386.6,3385.3,0.02953768]
[1736281866774,2.95332,3386.1,3385.3,0.02953768]
[1736281867221,3.8329,3386.7,3385.4,0.0075]
[1736281867357,2.95334,3386.0,3385.4,0.0075]
[1736281868052,2.95263,3386.9,3385.7,2.95358]
[1736281868275,1.1531622,3387.1,3386.0,0.0075]
[1736281868512,1.20005067,3388.2,3386.3,0.8371]
[1736281868513,2.95222,3387.3,3386.3,0.8371]
[1736281868652,2.95222,3387.3,3386.3,1.0886]
[1736281868854,2.95222,3387.3,3386.4,0.0075]
[1736281869106,5.9519,3387.7,3386.4,0.0075]
[1736281869300,2.95194,3387.6,3386.6,0.0075]
[1736281869467,2.95239,3387.1,3386.6,0.0075]
[1736281870506,3.0,3387.7,3386.4,0.0075]
[1736281870650,2.95234,3387.2,3386.4,0.0075]
[1736281870861,3.0,3387.7,3386.4,0.0075]
[1736281870862,2.95214,3387.4,3386.4,0.0075]
[1736281871078,2.95221,3387.3,3386.5,0.40961]
[1736281871311,2.95221,3387.3,3386.6,0.0075]
[1736281871312,2.95227,3387.3,3386.6,0.0075]
[1736281872250,0.7876,3387.9,3386.6,0.0075]
[1736281872455,2.95238,3387.1,3386.3,1.0886]
[1736281872715,0.8236,3387.4,3386.3,1.0886]
[1736281872894,0.8236,3387.4,3386.3,0.259]
[1736281872895,2.95269,3386.8,3386.3,0.259]
[1736281873059,2.95272,3386.7,3386.3,0.259]
[1736281873451,2.95229,3387.2,3386.4,0.0075]
[1736281873657,2.95235,3387.2,3386.4,0.03702963]
[1736281873907,2.95235,3387.2,3386.6,0.0075]
[1736281874707,0.8236,3387.8,3386.6,0.0075]
[1736281874708,2.95185,3387.7,3386.6,0.0075]
[1736281875026,2.95255,3386.9,3386.6,0.0075]
[1736281875323,2.9524,3387.1,3386.6,0.0075]
[1736281876323,3.677545,3387.6,3386.6,0.0075]
[1736281876480,2.95243,3387.1,3386.6,0.0075]
[1736281876679,2.9525,3387.0,3386.6,0.0075]
[1736281877925,2.95213,3387.4,3386.6,0.0075]
[1736281878106,2.95213,3387.4,3386.8,0.0075]
[1736281878308,2.95197,3387.6,3386.8,0.0075]
[1736281878480,2.95178,3387.8,3387.0,0.0075]
[1736281878674,2.95187,3387.7,3387.0,0.03702102]
[1736281878874,2.95187,3387.7,3387.0,0.0075]
[1736281879316,2.9515,3388.1,3387.0,0.0075]
[1736281879631,2.95179,3387.8,3387.0,0.38624]
[1736281879778,2.95187,3387.7,3387.0,0.38624]
[1736281879975,2.95187,3387.7,3387.0,0.0075]
[1736281881117,2.95187,3387.7,3387.0,0.2665]
[1736281881513,4.03213744,3388.4,3387.0,0.2665]
[1736281881747,2.95226,3387.3,3387.0,0.259]
[1736281882217,2.95226,3387.3,3387.1,0.0075]
[1736281882878,0.7737,3388.1,3387.1,0.0075]
[1736281883079,3.0,3388.3,3387.1,0.0075]
[1736281883303,2.9517,3387.9,3387.1,0.0075]
[1736281883616,2.9517,3387.9,3387.3,0.0075]
[1736281884020,2.95183,3387.8,3387.1,0.0075]
[1736281884522,2.95193,3387.7,3387.1,0.0075]
[1736281884729,3.0,3388.3,3387.1,0.0075]
[1736281884894,2.95186,3387.7,3387.1,0.0075]
[1736281885623,4.16236859,3388.2,3386.9,0.8272]
[1736281885828,2.95272,3386.7,3386.6,0.821]
[1736281886127,3.42962205,3387.4,3386.5,1.22149326]
[1736281886311,0.8187,3387.6,3386.5,1.22149326]
[1736281886509,2.95196,3387.6,3386.6,0.51777429]
[1736281886730,2.95187,3387.7,3387.0,0.0075]
[1736281887086,1.20005067,3387.8,3387.0,0.03702123]
[1736281887315,4.15182067,3387.8,3387.0,0.03702089]
[1736281887509,1.20005067,3387.8,3387.0,0.0075]
[1736281887836,4.15183067,3387.8,3387.0,0.0075]
[1736281888185,4.15183067,3387.8,3387.0,0.40813822]
[1736281888528,2.95178,3387.8,3387.0,0.43766039]
[1736281888746,2.95166,3388.0,3387.0,0.43766039]
[1736281889052,2.95168,3387.9,3387.2,0.0075]
[1736281889412,2.95179,3387.8,3387.2,0.0075]
[1736281890202,2.95179,3387.8,3387.2,0.45160991]
[1736281890448,2.95115,3388.5,3387.7,0.0075]
[1736281890750,2.95099,3388.7,3387.7,0.0075]
[1736281890943,4.15098067,3388.8,3387.9,0.0075]
[1736281891152,2.95099,3388.7,3388.1,0.8307]
[1736281891450,1.20005067,3388.8,3388.1,0.8307]
[1736281891604,2.95099,3388.7,3388.1,0.8307]
[1736281891807,1.20005067,3388.8,3388.1,1.26435742]
[1736281892210,2.95089,3388.9,3388.1,1.26435742]
[1736281892405,2.95089,3388.9,3388.1,1.234844]
[1736281892605,2.95089,3388.9,3388.3,0.0075]
[1736281893191,3.5438908,3389.3,3388.3,0.0075]
[1736281893432,2.95065,3389.1,3388.3,0.0075]
[1736281893736,3.0,3389.6,3388.3,0.41012018]
[1736281893914,2.95048,3389.3,3388.5,0.0075]
[1736281894300,1.20005067,3389.7,3388.9,0.0075]
[1736281894534,1.20005067,3389.7,3389.2,0.0075]
[1736281894721,1.20005067,3389.7,3389.2,0.03700198]
[1736281894921,1.20005067,3389.7,3389.2,0.0075]
[1736281895235,1.20005067,3390.1,3389.2,0.437419]
[1736281895438,1.20005067,3390.1,3389.4,0.0075]
[1736281895740,1.20005067,3390.1,3389.4,0.03700039]
[1736281896516,2.94969,3390.2,3389.4,0.03700039]
[1736281897343,1.20005067,3391.2,3389.4,5.99487039]
[1736281897640,1.20005067,3391.2,3390.3,0.0075]
[1736281897939,2.94891,3391.1,3390.5,0.0075]
[1736281898148,2.94915,3390.9,3390.5,0.0075]
[1736281898448,2.94915,3390.9,3390.4,0.0075]
[1736281898751,0.294891,3391.0,3390.4,0.0075]
[1736281898939,6.37896205,3390.6,3389.3,0.258]
[1736281899109,2.94923,3390.8,3389.7,0.0075]
[1736281899445,2.94923,3390.8,3389.8,3.0]
[1736281899656,2.94923,3390.8,3389.9,0.03699461]
[1736281899824,0.02732744,3390.7,3390.1,0.0075]
[1736281900216,2.94916,3390.8,3389.9,0.0075]
[1736281900431,0.55,3391.3,3389.9,0.0075]
[1736281900649,0.02884592,3390.7,3389.9,0.0075]
[1736281900858,0.6458468,3390.7,3389.6,0.258]
[1736281901179,2.94978,3390.1,3389.0,4.18689552]
[1736281901378,2.94988,3390.0,3389.1,0.258]
[1736281901525,2.94988,3390.0,3389.2,0.02950147]
[1736281901721,0.0290496,3389.9,3389.2,0.02950147]
[1736281901932,0.0290496,3389.9,3389.2,0.47695017]
[1736281902145,0.58503461,3390.6,3389.4,0.0075]
[1736281902146,2.94966,3390.3,3389.4,0.0075]
[1736281902460,0.0290496,3390.2,3389.5,0.0075]
[1736281902858,6.42962205,3391.2,3389.2,0.565]
[1736281903022,0.02873275,3390.1,3389.9,0.0075]
[1736281903216,6.37846205,3391.2,3389.9,0.0075]
[1736281903421,2.94904,3391.0,3389.9,3.28266304]
[1736281903621,2.94904,3391.0,3390.1,0.0075]
[1736281903823,2.94904,3391.0,3390.3,0.0075]
[1736281904158,0.02873275,3390.9,3390.3,0.0075]
[1736281904672,0.02873275,3390.9,3390.5,0.0075]
[1736281904956,2.94891,3391.1,3390.5,0.0075]
[1736281905261,0.02918537,3391.0,3390.5,0.0075]
[1736281905432,0.02918537,3391.0,3390.3,0.0075]
[1736281905642,2.94873,3391.3,3390.5,0.0075]
[1736281905843,0.02918537,3390.9,3390.5,0.03698861]
[1736281906237,2.94861,3391.5,3390.5,0.03698861]
[1736281906558,2.94868,3391.4,3390.5,0.03698861]
[1736281906861,2.94873,3391.3,3390.3,0.0075]
[1736281907036,2.9489,3391.1,3390.3,0.0075]
[1736281907235,2.9493,3390.7,3389.9,0.258]
[1736281907961,0.02947948,3390.6,3389.9,0.258]
[1736281908168,2.97881948,3390.6,3389.9,0.258]
[1736281908330,0.02947948,3390.5,3389.3,2.95043]
[1736281908668,2.94968,3390.2,3389.4,0.553043]
[1736281909162,2.97905587,3390.1,3389.4,0.553043]
[1736281909366,0.02927587,3390.1,3389.5,0.0075]
[1736281909540,0.02927587,3390.1,3389.5,0.03699801]
[1736281909862,2.94962,3390.3,3389.5,0.03699801]
[1736281910173,2.94962,3390.3,3389.5,0.0075]
[1736281910377,2.94962,3390.3,3389.5,0.329095]
[1736281910522,0.02819643,3390.2,3389.5,0.329095]
[1736281911368,0.02819643,3390.2,3389.7,0.0075]